[Event "*** SCC Grand Prix: Titled Tuesday Blitz"]
[Site "Chess.com"]
[Date "2020.09.08"]
[Round "7"]
[White "Aborigen_came"]
[Black "jhonnyuribe"]
[Result "0-1"]
[WhiteElo "2688"]
[BlackElo "2530"]
[TimeControl "180+1"]
[EndTime "11:18:59 PDT"]
[Termination "jhonnyuribe won on time"]

1. Nc3 {[%clk 0:03:00.9]} 1... d5 {[%clk 0:03:00.2]} 2. e4 {[%clk 0:03:00.5]}
2... dxe4 {[%clk 0:02:59.2]} 3. Nxe4 {[%clk 0:03:01.4]} 3... a6 {[%clk
0:02:59.1]} 4. d4 {[%clk 0:02:59.1]} 4... g6 {[%clk 0:02:59.4]} 5. Nf3 {[%clk
0:02:56.5]} 5... Bg7 {[%clk 0:02:59.5]} 6. Bf4 {[%clk 0:02:55.9]} 6... Nf6
{[%clk 0:02:57.8]} 7. Nxf6+ {[%clk 0:02:52.5]} 7... exf6 {[%clk 0:02:54.2]} 8.
Be2 {[%clk 0:02:37.4]} 8... O-O {[%clk 0:02:53.6]} 9. O-O {[%clk 0:02:37.1]}
9... b5 {[%clk 0:02:49]} 10. c3 {[%clk 0:02:34.5]} 10... Bb7 {[%clk 0:02:48.5]}
11. Ne1 {[%clk 0:02:33.1]} 11... f5 {[%clk 0:02:44.5]} 12. Nd3 {[%clk
0:02:27.3]} 12... Nd7 {[%clk 0:02:41.6]} 13. Bf3 {[%clk 0:02:20.6]} 13... Be4
{[%clk 0:02:40.6]} 14. a4 {[%clk 0:01:54.4]} 14... c6 {[%clk 0:02:34.2]} 15.
axb5 {[%clk 0:01:38.7]} 15... axb5 {[%clk 0:02:31.4]} 16. Rxa8 {[%clk
0:01:34.3]} 16... Qxa8 {[%clk 0:02:32.3]} 17. Nb4 {[%clk 0:01:26.4]} 17... c5
{[%clk 0:02:29.4]} 18. Bxe4 {[%clk 0:01:19.7]} 18... Qxe4 {[%clk 0:02:26.4]} 19.
dxc5 {[%clk 0:01:16.4]} 19... Nxc5 {[%clk 0:02:23.7]} 20. Be3 {[%clk 0:00:56.9]}
20... Ne6 {[%clk 0:02:18.7]} 21. Qd3 {[%clk 0:00:49]} 21... Qxd3 {[%clk
0:02:09.9]} 22. Nxd3 {[%clk 0:00:49.9]} 22... Rd8 {[%clk 0:02:10.5]} 23. Nf4
{[%clk 0:00:49.8]} 23... Nxf4 {[%clk 0:01:56]} 24. Bxf4 {[%clk 0:00:50.7]} 24...
b4 {[%clk 0:01:56.5]} 25. cxb4 {[%clk 0:00:46.8]} 25... Rd4 {[%clk 0:01:56.7]}
26. g3 {[%clk 0:00:38.2]} 26... Rxb4 {[%clk 0:01:56.7]} 27. Rb1 {[%clk
0:00:26.6]} 27... Rxb2 {[%clk 0:01:54]} 28. Rxb2 {[%clk 0:00:26.5]} 28... Bxb2
{[%clk 0:01:54.6]} 29. Kg2 {[%clk 0:00:25.9]} 29... Kg7 {[%clk 0:01:52.3]} 30.
f3 {[%clk 0:00:24.3]} 30... Kf6 {[%clk 0:01:52.5]} 31. h3 {[%clk 0:00:21.8]}
31... Ke6 {[%clk 0:01:52.4]} 32. Be3 {[%clk 0:00:18.8]} 32... Kd5 {[%clk
0:01:52.4]} 33. Bd2 {[%clk 0:00:14.2]} 33... Kd4 {[%clk 0:01:50.3]} 34. Bh6
{[%clk 0:00:13.6]} 34... Kd3 {[%clk 0:01:49.9]} 35. Bf8 {[%clk 0:00:11.9]} 35...
Ke2 {[%clk 0:01:49.7]} 36. Bd6 {[%clk 0:00:11.5]} 36... Bd4 {[%clk 0:01:47.9]}
37. Bc7 {[%clk 0:00:10.8]} 37... Be3 {[%clk 0:01:47.5]} 38. Bd6 {[%clk
0:00:10.6]} 38... Bg5 {[%clk 0:01:38.2]} 39. Bc7 {[%clk 0:00:10.1]} 39... Be7
{[%clk 0:01:37.2]} 40. Be5 {[%clk 0:00:09.7]} 40... Bd8 {[%clk 0:01:32.5]} 41.
Bd6 {[%clk 0:00:06.7]} 41... Bf6 {[%clk 0:01:32.5]} 42. Bc7 {[%clk 0:00:06.6]}
42... g5 {[%clk 0:01:27.8]} 43. Bb8 {[%clk 0:00:06.8]} 43... h5 {[%clk
0:01:25.2]} 44. g4 {[%clk 0:00:05.8]} 44... fxg4 {[%clk 0:01:18]} 45. fxg4
{[%clk 0:00:05.6]} 45... hxg4 {[%clk 0:01:11.1]} 46. hxg4 {[%clk 0:00:06.5]}
46... Ke3 {[%clk 0:01:09.5]} 47. Bc7 {[%clk 0:00:05.6]} 47... Ke4 {[%clk
0:01:09.4]} 48. Bb6 {[%clk 0:00:04.9]} 48... Bd4 {[%clk 0:01:07.3]} 49. Ba5
{[%clk 0:00:04.9]} 49... Kf4 {[%clk 0:01:04.1]} 50. Kh3 {[%clk 0:00:05]} 50...
Kf3 {[%clk 0:01:03]} 51. Bd8 {[%clk 0:00:04.1]} 51... f5 {[%clk 0:01:00.2]} 52.
gxf5 {[%clk 0:00:03.9]} 52... g4+ {[%clk 0:01:00.6]} 53. Kh4 {[%clk 0:00:03.4]}
53... g3 {[%clk 0:00:59.4]} 54. Bc7 {[%clk 0:00:02.8]} 54... g2 {[%clk
0:00:57.5]} 55. Bh2 {[%clk 0:00:02.9]} 55... Kf2 {[%clk 0:00:53.7]} 56. Kg4
{[%clk 0:00:01.5]} 56... Be5 {[%clk 0:00:51.7]} 0-1

[Event "*** SCC Grand Prix: Titled Tuesday Blitz"]
[Site "Chess.com"]
[Date "2020.09.08"]
[Round "7"]
[White "zmeeed67"]
[Black "leejunhyeok"]
[Result "0-1"]
[WhiteElo "2430"]
[BlackElo "2654"]
[TimeControl "180+1"]
[EndTime "11:18:59 PDT"]
[Termination "leejunhyeok won on time"]

1. e4 {[%clk 0:03:00.9]} 1... g6 {[%clk 0:03:00.1]} 2. g3 {[%clk 0:02:58.8]}
2... Bg7 {[%clk 0:02:53]} 3. Bg2 {[%clk 0:02:58.6]} 3... c5 {[%clk 0:02:53.2]}
4. Ne2 {[%clk 0:02:58.5]} 4... Nc6 {[%clk 0:02:53.7]} 5. O-O {[%clk 0:02:58.2]}
5... Nf6 {[%clk 0:02:52.9]} 6. Nbc3 {[%clk 0:02:58]} 6... O-O {[%clk 0:02:53]}
7. a3 {[%clk 0:02:56]} 7... d6 {[%clk 0:02:52.9]} 8. Rb1 {[%clk 0:02:55.7]} 8...
b6 {[%clk 0:02:41.3]} 9. b4 {[%clk 0:02:55.2]} 9... Bb7 {[%clk 0:02:41.4]} 10.
d3 {[%clk 0:02:52.1]} 10... Nd7 {[%clk 0:02:39.9]} 11. Nd5 {[%clk 0:02:46.8]}
11... e6 {[%clk 0:02:36.7]} 12. Ne3 {[%clk 0:02:46.1]} 12... Nd4 {[%clk
0:02:18.5]} 13. Bb2 {[%clk 0:02:13.2]} 13... e5 {[%clk 0:02:12]} 14. c3 {[%clk
0:02:09.9]} 14... Nxe2+ {[%clk 0:02:04.7]} 15. Qxe2 {[%clk 0:02:09.6]} 15... b5
{[%clk 0:01:58.9]} 16. bxc5 {[%clk 0:01:53.2]} 16... dxc5 {[%clk 0:01:57.4]} 17.
Nd5 {[%clk 0:01:52.7]} 17... Nb6 {[%clk 0:01:28.7]} 18. c4 {[%clk 0:01:51.2]}
18... Nxd5 {[%clk 0:01:23.8]} 19. exd5 {[%clk 0:01:46.3]} 19... Re8 {[%clk
0:01:21.7]} 20. Rfe1 {[%clk 0:01:44]} 20... a5 {[%clk 0:01:19.5]} 21. Qc2 {[%clk
0:01:18.8]} 21... b4 {[%clk 0:01:17.9]} 22. Re2 {[%clk 0:01:18.4]} 22... a4
{[%clk 0:01:16.4]} 23. Rbe1 {[%clk 0:01:15.5]} 23... Qd7 {[%clk 0:00:32.8]} 24.
Bxe5 {[%clk 0:00:47.1]} 24... Bxe5 {[%clk 0:00:31.9]} 25. Rxe5 {[%clk
0:00:47.3]} 25... Rxe5 {[%clk 0:00:32.2]} 26. Rxe5 {[%clk 0:00:47.3]} 26... Re8
{[%clk 0:00:30.8]} 27. f4 {[%clk 0:00:34]} 27... Rxe5 {[%clk 0:00:24.3]} 28.
fxe5 {[%clk 0:00:33.4]} 28... b3 {[%clk 0:00:24.9]} 29. Qc3 {[%clk 0:00:25.8]}
29... Qg4 {[%clk 0:00:21.6]} 30. Qe1 {[%clk 0:00:12.2]} 30... Qd4+ {[%clk
0:00:17]} 31. Kh1 {[%clk 0:00:12.2]} 31... b2 {[%clk 0:00:09.9]} 32. e6 {[%clk
0:00:12]} 32... fxe6 {[%clk 0:00:10.4]} 33. dxe6 {[%clk 0:00:09.5]} 33... Bxg2+
{[%clk 0:00:08.2]} 34. Kxg2 {[%clk 0:00:09.4]} 34... Kf8 {[%clk 0:00:08.5]} 35.
e7+ {[%clk 0:00:09.6]} 35... Ke8 {[%clk 0:00:09]} 36. h4 {[%clk 0:00:04.5]}
36... Qxd3 {[%clk 0:00:07.7]} 37. Qf2 {[%clk 0:00:01.2]} 37... Qe4+ {[%clk
0:00:04.7]} 0-1

[Event "*** SCC Grand Prix: Titled Tuesday Blitz"]
[Site "Chess.com"]
[Date "2020.09.08"]
[Round "7"]
[White "Lion-Al-Messi"]
[Black "Mambastik-Fantastic"]
[Result "1/2-1/2"]
[WhiteElo "2529"]
[BlackElo "2308"]
[TimeControl "180+1"]
[EndTime "11:19:03 PDT"]
[Termination "Game drawn by agreement"]

1. e4 {[%clk 0:03:00.9]} 1... c5 {[%clk 0:02:57]} 2. Nf3 {[%clk 0:03:00.5]} 2...
d6 {[%clk 0:02:57]} 3. d4 {[%clk 0:03:00.7]} 3... Nf6 {[%clk 0:02:56.6]} 4. Nc3
{[%clk 0:03:00.8]} 4... cxd4 {[%clk 0:02:56.8]} 5. Nxd4 {[%clk 0:03:01.7]} 5...
a6 {[%clk 0:02:57.3]} 6. h3 {[%clk 0:03:01.1]} 6... e5 {[%clk 0:02:57.2]} 7.
Nde2 {[%clk 0:03:01.5]} 7... g6 {[%clk 0:02:56.7]} 8. g4 {[%clk 0:03:00.2]} 8...
Bg7 {[%clk 0:02:57.1]} 9. Bg2 {[%clk 0:03:00.6]} 9... O-O {[%clk 0:02:56.8]} 10.
O-O {[%clk 0:03:01.3]} 10... b5 {[%clk 0:02:57]} 11. Be3 {[%clk 0:03:01.3]}
11... Bb7 {[%clk 0:02:56.8]} 12. Nd5 {[%clk 0:03:01.8]} 12... Nxd5 {[%clk
0:02:49.8]} 13. exd5 {[%clk 0:03:02.1]} 13... Nd7 {[%clk 0:02:50]} 14. Qd2
{[%clk 0:02:58]} 14... Re8 {[%clk 0:02:43.6]} 15. Bh6 {[%clk 0:02:57.3]} 15...
Bh8 {[%clk 0:02:43.3]} 16. Rad1 {[%clk 0:02:56.2]} 16... Rc8 {[%clk 0:02:42.8]}
17. c3 {[%clk 0:02:55.9]} 17... f5 {[%clk 0:02:41.2]} 18. gxf5 {[%clk
0:02:55.7]} 18... gxf5 {[%clk 0:02:41]} 19. Ng3 {[%clk 0:02:55.2]} 19... Qf6
{[%clk 0:02:37.5]} 20. Bg5 {[%clk 0:02:54.3]} 20... Qg6 {[%clk 0:02:35.7]} 21.
h4 {[%clk 0:02:54.6]} 21... h6 {[%clk 0:02:32.2]} 22. Bxh6 {[%clk 0:02:51.6]}
22... Nc5 {[%clk 0:02:20.1]} 23. Be3 {[%clk 0:02:46.1]} 23... f4 {[%clk
0:02:12.6]} 24. Bxc5 {[%clk 0:02:46.1]} 24... fxg3 {[%clk 0:02:12.1]} 25. Be3
{[%clk 0:02:39.4]} 25... e4 {[%clk 0:02:08]} 26. fxg3 {[%clk 0:02:37.5]} 26...
Qxg3 {[%clk 0:02:04.3]} 27. Rf4 {[%clk 0:02:36.6]} 27... Be5 {[%clk 0:02:01.9]}
28. Rdf1 {[%clk 0:02:34.6]} 28... Bxf4 {[%clk 0:01:59.6]} 29. Rxf4 {[%clk
0:02:32.3]} 29... Rf8 {[%clk 0:01:54.2]} 30. Rxe4 {[%clk 0:02:32.3]} 30... Rc4
{[%clk 0:01:45.5]} 31. Bd4 {[%clk 0:02:17.8]} 31... Bxd5 {[%clk 0:01:35.8]} 32.
Re7 {[%clk 0:02:13.1]} 32... Rxd4 {[%clk 0:00:58.2]} 33. cxd4 {[%clk 0:02:07.8]}
33... Rf4 {[%clk 0:00:42.9]} 34. Qe2 {[%clk 0:01:06.2]} 34... Qxg2+ {[%clk
0:00:19.5]} 35. Qxg2+ {[%clk 0:01:06]} 35... Bxg2 {[%clk 0:00:20.2]} 36. Kxg2
{[%clk 0:01:06.6]} 36... Rxh4 {[%clk 0:00:20.4]} 37. d5 {[%clk 0:01:02.9]} 37...
Rd4 {[%clk 0:00:19.9]} 38. Kf3 {[%clk 0:00:59.1]} 38... Rxd5 {[%clk 0:00:20]}
39. Ke3 {[%clk 0:00:58.8]} 39... Re5+ {[%clk 0:00:19.4]} 40. Rxe5 {[%clk
0:00:59]} 40... dxe5 {[%clk 0:00:19.7]} 41. Ke4 {[%clk 0:00:59.9]} 41... Kf7
{[%clk 0:00:20]} 42. Kxe5 {[%clk 0:01:00.8]} 42... Ke7 {[%clk 0:00:20.4]} 43.
Kd5 {[%clk 0:01:01.5]} 43... Kd7 {[%clk 0:00:20.8]} 44. Kc5 {[%clk 0:01:01.8]}
44... Kc7 {[%clk 0:00:21.2]} 45. b4 {[%clk 0:01:00.6]} 45... Kb7 {[%clk
0:00:19.8]} 46. Kd6 {[%clk 0:00:55.9]} 46... Kb6 {[%clk 0:00:20.1]} 47. Kd7
{[%clk 0:00:43.4]} 47... a5 {[%clk 0:00:20.3]} 48. a3 {[%clk 0:00:43.9]} 48...
axb4 {[%clk 0:00:18.5]} 49. axb4 {[%clk 0:00:44.8]} 49... Kb7 {[%clk 0:00:18.2]}
50. Kd6 {[%clk 0:00:44.3]} 50... Kb6 {[%clk 0:00:17.3]} 51. Kd5 {[%clk
0:00:44.4]} 51... Kb7 {[%clk 0:00:14]} 52. Kc5 {[%clk 0:00:44.5]} 52... Kc7
{[%clk 0:00:14.2]} 53. Kxb5 {[%clk 0:00:43.9]} 53... Kb7 {[%clk 0:00:14.5]} 54.
Kc5 {[%clk 0:00:44.1]} 54... Kc7 {[%clk 0:00:14.6]} 55. b5 {[%clk 0:00:44.3]}
55... Kb7 {[%clk 0:00:14.9]} 56. b6 {[%clk 0:00:44.5]} 56... Kb8 {[%clk
0:00:15.1]} 57. Kb5 {[%clk 0:00:44.2]} 57... Kb7 {[%clk 0:00:15.3]} 58. Ka5
{[%clk 0:00:44.2]} 58... Kb8 {[%clk 0:00:14.8]} 59. Ka6 {[%clk 0:00:44.5]} 59...
Ka8 {[%clk 0:00:15.1]} 1/2-1/2

[Event "*** SCC Grand Prix: Titled Tuesday Blitz"]
[Site "Chess.com"]
[Date "2020.09.08"]
[Round "7"]
[White "Manukyan_Artak"]
[Black "Sofiia_Hryzlova"]
[Result "1-0"]
[WhiteElo "2400"]
[BlackElo "2277"]
[TimeControl "180+1"]
[EndTime "11:19:03 PDT"]
[Termination "Manukyan_Artak won by checkmate"]

1. e4 {[%clk 0:03:00.9]} 1... c5 {[%clk 0:02:58.3]} 2. Nf3 {[%clk 0:03:00.6]}
2... Nc6 {[%clk 0:02:57.7]} 3. c3 {[%clk 0:03:00.4]} 3... Nf6 {[%clk 0:02:56.3]}
4. e5 {[%clk 0:03:00.4]} 4... Nd5 {[%clk 0:02:56.6]} 5. d4 {[%clk 0:03:01.3]}
5... cxd4 {[%clk 0:02:56.5]} 6. cxd4 {[%clk 0:03:02.2]} 6... d6 {[%clk
0:02:55.8]} 7. Nc3 {[%clk 0:03:03.1]} 7... Nxc3 {[%clk 0:02:53.8]} 8. bxc3
{[%clk 0:03:04]} 8... dxe5 {[%clk 0:02:53.9]} 9. d5 {[%clk 0:03:04.4]} 9... e4
{[%clk 0:02:47.1]} 10. Ng5 {[%clk 0:03:02.9]} 10... Ne5 {[%clk 0:02:31.7]} 11.
Nxe4 {[%clk 0:03:01]} 11... Bd7 {[%clk 0:02:29.1]} 12. Qd4 {[%clk 0:02:57.9]}
12... Ng4 {[%clk 0:02:23.5]} 13. Be2 {[%clk 0:02:49.5]} 13... Nf6 {[%clk
0:02:22.9]} 14. Nxf6+ {[%clk 0:02:47.7]} 14... gxf6 {[%clk 0:02:23]} 15. O-O
{[%clk 0:02:41.2]} 15... Bg7 {[%clk 0:02:22.4]} 16. Qh4 {[%clk 0:02:27.5]} 16...
Bf5 {[%clk 0:02:15.1]} 17. Bb5+ {[%clk 0:02:23.8]} 17... Kf8 {[%clk 0:02:14.9]}
18. Rd1 {[%clk 0:02:17]} 18... Rc8 {[%clk 0:02:10.7]} 19. Bh6 {[%clk 0:02:12.1]}
19... Qd6 {[%clk 0:01:59.9]} 20. Bf4 {[%clk 0:01:49]} 20... Qc5 {[%clk
0:01:53.8]} 21. Bf1 {[%clk 0:01:43.6]} 21... Rd8 {[%clk 0:01:40.5]} 22. c4
{[%clk 0:01:33.2]} 22... h5 {[%clk 0:01:36.9]} 23. Be3 {[%clk 0:01:32]} 23...
Qa5 {[%clk 0:01:32.6]} 24. c5 {[%clk 0:01:24.6]} 24... Bg4 {[%clk 0:01:29.1]}
25. f3 {[%clk 0:01:15]} 25... Qa3 {[%clk 0:01:16.4]} 26. Bf2 {[%clk 0:01:02.4]}
26... Bf5 {[%clk 0:01:07.8]} 27. Qf4 {[%clk 0:00:56.6]} 27... Bc2 {[%clk
0:01:02.2]} 28. Rd2 {[%clk 0:00:51.8]} 28... Ba4 {[%clk 0:01:00.4]} 29. d6
{[%clk 0:00:49.5]} 29... e5 {[%clk 0:00:52.2]} 30. Qf5 {[%clk 0:00:42.4]} 30...
Bd7 {[%clk 0:00:49.5]} 31. Qc2 {[%clk 0:00:40.8]} 31... Bh6 {[%clk 0:00:45.8]}
32. Rd3 {[%clk 0:00:39.7]} 32... Qa5 {[%clk 0:00:38.1]} 33. Qb2 {[%clk
0:00:20.4]} 33... Bc6 {[%clk 0:00:33.8]} 34. Ra3 {[%clk 0:00:20.3]} 34... Qd2
{[%clk 0:00:29.3]} 35. Qxd2 {[%clk 0:00:19.8]} 35... Bxd2 {[%clk 0:00:29.4]} 36.
Rxa7 {[%clk 0:00:20.7]} 36... h4 {[%clk 0:00:26.8]} 37. h3 {[%clk 0:00:20.5]}
37... f5 {[%clk 0:00:22.4]} 38. a4 {[%clk 0:00:19.3]} 38... e4 {[%clk
0:00:21.6]} 39. fxe4 {[%clk 0:00:18.2]} 39... fxe4 {[%clk 0:00:21.6]} 40. Bd4
{[%clk 0:00:18.5]} 40... Rg8 {[%clk 0:00:20.1]} 41. a5 {[%clk 0:00:16.6]} 41...
e3 {[%clk 0:00:19.1]} 42. a6 {[%clk 0:00:15.4]} 42... e2 {[%clk 0:00:19.1]} 43.
axb7 {[%clk 0:00:14.1]} 43... exf1=Q+ {[%clk 0:00:17.8]} 44. Kxf1 {[%clk
0:00:15]} 44... Rxg2 {[%clk 0:00:15.3]} 45. Ra8 {[%clk 0:00:13.6]} 45... Rxa8
{[%clk 0:00:09.9]} 46. bxa8=Q+ {[%clk 0:00:14.5]} 46... Bxa8 {[%clk 0:00:10]}
47. Rxa8# {[%clk 0:00:15.2]} 1-0

[Event "*** SCC Grand Prix: Titled Tuesday Blitz"]
[Site "Chess.com"]
[Date "2020.09.08"]
[Round "7"]
[White "ChessWarrior7197"]
[Black "jefferyx"]
[Result "0-1"]
[WhiteElo "2949"]
[BlackElo "2942"]
[TimeControl "180+1"]
[EndTime "11:19:05 PDT"]
[Termination "jefferyx won on time"]

1. e4 {[%clk 0:03:00.9]} 1... c5 {[%clk 0:02:57.3]} 2. Nf3 {[%clk 0:03:00.3]}
2... d6 {[%clk 0:02:57.5]} 3. d4 {[%clk 0:03:00.3]} 3... Nf6 {[%clk 0:02:58.2]}
4. dxc5 {[%clk 0:03:00]} 4... Nxe4 {[%clk 0:02:57.7]} 5. cxd6 {[%clk 0:03:00.3]}
5... Nc6 {[%clk 0:02:58.2]} 6. Be3 {[%clk 0:02:58.9]} 6... Nxd6 {[%clk
0:02:55.9]} 7. Nc3 {[%clk 0:02:59.1]} 7... Bg4 {[%clk 0:02:47.6]} 8. h3 {[%clk
0:02:43.6]} 8... Bh5 {[%clk 0:02:48.1]} 9. Nb5 {[%clk 0:02:29]} 9... e6 {[%clk
0:02:42]} 10. g4 {[%clk 0:01:58]} 10... Bg6 {[%clk 0:02:41.9]} 11. Bf4 {[%clk
0:01:46.9]} 11... Nxb5 {[%clk 0:02:38.8]} 12. Qxd8+ {[%clk 0:01:46.6]} 12...
Rxd8 {[%clk 0:02:39.7]} 13. Bxb5 {[%clk 0:01:47]} 13... Be4 {[%clk 0:02:02.4]}
14. Ke2 {[%clk 0:01:41.8]} 14... a6 {[%clk 0:02:02.4]} 15. Bxc6+ {[%clk
0:01:41]} 15... Bxc6 {[%clk 0:02:03.3]} 16. Rhd1 {[%clk 0:01:41.5]} 16... Rc8
{[%clk 0:01:49.1]} 17. c4 {[%clk 0:01:34.7]} 17... f6 {[%clk 0:01:42.6]} 18. b3
{[%clk 0:01:12.5]} 18... Be7 {[%clk 0:01:39.7]} 19. Bd6 {[%clk 0:01:08]} 19...
Bd8 {[%clk 0:01:27.9]} 20. Nd4 {[%clk 0:01:04.8]} 20... Bd7 {[%clk 0:01:28.5]}
21. f4 {[%clk 0:01:05.2]} 21... h5 {[%clk 0:01:28.6]} 22. g5 {[%clk 0:00:51.9]}
22... fxg5 {[%clk 0:01:25.9]} 23. fxg5 {[%clk 0:00:52.8]} 23... Bxg5 {[%clk
0:01:26.4]} 24. Nf3 {[%clk 0:00:53.3]} 24... Bf6 {[%clk 0:01:14.5]} 25. Ne5
{[%clk 0:00:53.4]} 25... h4 {[%clk 0:01:14.9]} 26. Rac1 {[%clk 0:00:38.7]} 26...
Rh5 {[%clk 0:01:14.7]} 27. Ng4 {[%clk 0:00:29.7]} 27... Bc6 {[%clk 0:01:10.3]}
28. Rf1 {[%clk 0:00:27]} 28... Kf7 {[%clk 0:00:57.3]} 29. Be5 {[%clk 0:00:21.2]}
29... Bg2 {[%clk 0:00:47.2]} 30. Bxf6 {[%clk 0:00:03.7]} 30... Bxf1+ {[%clk
0:00:46.7]} 31. Rxf1 {[%clk 0:00:04.6]} 31... gxf6 {[%clk 0:00:47.3]} 32. Rxf6+
{[%clk 0:00:05.4]} 32... Ke7 {[%clk 0:00:47.5]} 33. Rg6 {[%clk 0:00:05.9]} 33...
Rf8 {[%clk 0:00:47.7]} 34. Rg7+ {[%clk 0:00:05.6]} 34... Rf7 {[%clk 0:00:47.9]}
35. Rg8 {[%clk 0:00:06.2]} 35... Ra5 {[%clk 0:00:32.1]} 36. a4 {[%clk
0:00:05.7]} 36... Raf5 {[%clk 0:00:30.7]} 37. Rh8 {[%clk 0:00:05.5]} 37... Kd6
{[%clk 0:00:24]} 38. Rxh4 {[%clk 0:00:02.7]} 38... Rf3 {[%clk 0:00:24.5]} 39.
Ne3 {[%clk 0:00:02.7]} 39... Kc5 {[%clk 0:00:20.4]} 40. Re4 {[%clk 0:00:01.3]}
40... Kb4 {[%clk 0:00:17.1]} 41. h4 {[%clk 0:00:01.6]} 41... Kxb3 {[%clk
0:00:17.2]} 42. c5 {[%clk 0:00:02.2]} 42... Rh3 {[%clk 0:00:16.7]} 0-1

[Event "*** SCC Grand Prix: Titled Tuesday Blitz"]
[Site "Chess.com"]
[Date "2020.09.08"]
[Round "7"]
[White "PIwan"]
[Black "BocharovD"]
[Result "0-1"]
[WhiteElo "2558"]
[BlackElo "2799"]
[TimeControl "180+1"]
[EndTime "11:19:05 PDT"]
[Termination "BocharovD won on time"]

1. c4 {[%clk 0:03:00.9]} 1... c5 {[%clk 0:02:58.9]} 2. Nf3 {[%clk 0:03:00.5]}
2... Nc6 {[%clk 0:02:58]} 3. e3 {[%clk 0:03:00]} 3... Nf6 {[%clk 0:02:57.6]} 4.
Nc3 {[%clk 0:02:59.9]} 4... g6 {[%clk 0:02:54.3]} 5. d4 {[%clk 0:02:59.5]} 5...
cxd4 {[%clk 0:02:54.8]} 6. exd4 {[%clk 0:03:00.4]} 6... d5 {[%clk 0:02:54.7]} 7.
cxd5 {[%clk 0:03:00.6]} 7... Nxd5 {[%clk 0:02:55.2]} 8. Qb3 {[%clk 0:03:01.2]}
8... e6 {[%clk 0:02:55.5]} 9. Bg5 {[%clk 0:02:52]} 9... Be7 {[%clk 0:02:51.7]}
10. Bh6 {[%clk 0:02:43.6]} 10... Bf8 {[%clk 0:02:50.9]} 11. Bxf8 {[%clk
0:02:40.8]} 11... Kxf8 {[%clk 0:02:50.4]} 12. Bb5 {[%clk 0:02:32.5]} 12... Nce7
{[%clk 0:02:47.9]} 13. O-O {[%clk 0:02:30]} 13... Kg7 {[%clk 0:02:47.4]} 14.
Rad1 {[%clk 0:02:22.6]} 14... Bd7 {[%clk 0:02:45.6]} 15. Bxd7 {[%clk 0:01:55.8]}
15... Qxd7 {[%clk 0:02:45.2]} 16. Ne5 {[%clk 0:01:56.7]} 16... Qd6 {[%clk
0:02:33.8]} 17. Ne4 {[%clk 0:01:55.1]} 17... Qb4 {[%clk 0:02:25.5]} 18. Qf3
{[%clk 0:01:42.8]} 18... Nf5 {[%clk 0:02:22.2]} 19. g4 {[%clk 0:01:32]} 19...
Nh6 {[%clk 0:02:09.2]} 20. Ng5 {[%clk 0:01:08.5]} 20... Qe7 {[%clk 0:02:05.6]}
21. Ne4 {[%clk 0:00:42.8]} 21... Rhf8 {[%clk 0:02:04]} 22. Rfe1 {[%clk
0:00:40.3]} 22... Rad8 {[%clk 0:02:03]} 23. Qg3 {[%clk 0:00:29.4]} 23... Rc8
{[%clk 0:01:16.3]} 24. Re2 {[%clk 0:00:27.1]} 24... Rfd8 {[%clk 0:01:13.9]} 25.
h4 {[%clk 0:00:26.7]} 25... b6 {[%clk 0:01:11.9]} 26. Ng5 {[%clk 0:00:26.3]}
26... Rc7 {[%clk 0:00:54.3]} 27. Rde1 {[%clk 0:00:21.7]} 27... Kg8 {[%clk
0:00:49.9]} 28. Nexf7 {[%clk 0:00:20.9]} 28... Nxf7 {[%clk 0:00:46.5]} 29. Nxe6
{[%clk 0:00:21.1]} 29... Rd6 {[%clk 0:00:35.8]} 30. Nxc7 {[%clk 0:00:17.1]}
30... Qxc7 {[%clk 0:00:36]} 31. Re8+ {[%clk 0:00:17.5]} 31... Kg7 {[%clk
0:00:36]} 32. h5 {[%clk 0:00:12.9]} 32... Qd7 {[%clk 0:00:35.7]} 33. g5 {[%clk
0:00:10.8]} 33... gxh5 {[%clk 0:00:34.4]} 34. Qf3 {[%clk 0:00:05.2]} 34... Qg4+
{[%clk 0:00:30.5]} 35. Qxg4 {[%clk 0:00:05]} 35... hxg4 {[%clk 0:00:31.4]} 36.
R8e4 {[%clk 0:00:04.4]} 36... Nxg5 {[%clk 0:00:27.8]} 37. Rxg4 {[%clk
0:00:04.8]} 37... Kf6 {[%clk 0:00:27.7]} 38. f4 {[%clk 0:00:04.8]} 38... Nf3+
{[%clk 0:00:27.4]} 39. Kf2 {[%clk 0:00:04.4]} 39... Nxe1 {[%clk 0:00:27.9]} 40.
Kxe1 {[%clk 0:00:05.3]} 40... Re6+ {[%clk 0:00:27.5]} 41. Kd2 {[%clk 0:00:04.8]}
41... Kf5 {[%clk 0:00:24.6]} 42. Rh4 {[%clk 0:00:04.9]} 42... h6 {[%clk
0:00:23.6]} 43. Rh5+ {[%clk 0:00:05.2]} 43... Ke4 {[%clk 0:00:23.9]} 44. f5
{[%clk 0:00:03.1]} 44... Rf6 {[%clk 0:00:24.1]} 0-1